bitfinex-derivatives/quotes_BNBF0:USTF0_20250220
["timestamp","ask_amount","ask_price","bid_price","bid_amount"]
[1740067582238,3.09271179,647.58,645.79,0.30969819]
[1740067582440,3.09271179,647.57,645.79,0.30969819]
[1740067582640,0.30878969,647.69,645.79,0.30969819]
[1740067582641,3.09271179,647.56,645.79,0.30969819]
[1740067582840,3.09271179,647.55,645.79,0.30969819]
[1740067583041,3.09271179,647.54,645.79,0.30969819]
[1740067583239,2.31096097,647.58,645.79,0.30969819]
[1740067583439,3.09212029,647.57,645.79,0.30969819]
[1740067583637,3.09212029,647.56,645.79,0.30969819]
[1740067583838,3.09212029,647.55,645.79,0.30969819]
[1740067584041,2.31096097,647.55,645.79,0.30969819]
[1740067585442,0.30878969,647.69,645.79,0.30969819]
[1740067585644,3.09242837,647.68,645.79,0.30969819]
[1740067585845,3.09242837,647.67,645.79,0.30969819]
[1740067586046,3.09242837,647.66,645.79,0.30969819]
[1740067586247,3.09242837,647.65,645.79,0.30969819]
[1740067586441,3.09242837,647.64,645.79,0.30969819]
[1740067586645,3.09242837,647.63,645.79,0.30969819]
[1740067586848,2.30807058,647.67,645.79,0.30969819]
[1740067586849,3.09242837,647.62,645.79,0.30969819]
[1740067587045,3.09242837,647.61,645.79,0.30969819]
[1740067587352,2.30807058,647.67,645.79,0.30969819]
[1740067587541,3.09235556,647.66,645.79,0.30969819]
[1740067587746,3.09235556,647.65,645.79,0.30969819]
[1740067587946,3.09235556,647.64,645.79,0.30969819]
[1740067588147,3.09235556,647.63,645.79,0.30969819]
[1740067588346,3.09235556,647.62,645.79,0.30969819]
[1740067588549,3.09235556,647.61,645.79,0.30969819]
[1740067588749,3.09235556,647.6,645.79,0.30969819]
[1740067588952,2.30807058,647.65,645.79,0.30969819]
[1740067589149,3.09193809,647.64,645.79,0.30969819]
[1740067589349,3.09193809,647.63,645.79,0.30969819]
[1740067589550,2.30807058,647.65,645.79,0.30969819]
[1740067589745,3.09161318,647.64,645.79,0.30969819]
[1740067589948,3.09161318,647.63,645.79,0.30969819]
[1740067590150,2.30807058,647.64,645.79,0.30969819]
[1740067590444,3.09148112,647.63,645.79,0.30969819]
[1740067590648,2.30807058,647.64,645.79,0.30969819]
[1740067590850,3.09141357,647.63,645.79,0.30969819]
[1740067591046,3.09141357,647.62,645.79,0.30969819]
[1740067591247,3.09141357,647.61,645.79,0.30969819]
[1740067591450,2.30807058,647.64,645.79,0.30969819]
[1740067591747,3.09106836,647.63,645.79,0.30969819]
[1740067591949,3.09106836,647.62,645.79,0.30969819]
[1740067592152,3.09106836,647.61,645.79,0.30969819]
[1740067592349,2.30734033,647.62,645.79,0.30969819]
[1740067592544,3.09134009,647.61,645.79,0.30969819]
[1740067592751,2.30734033,647.62,645.79,0.30969819]
[1740067592951,0.30878969,647.69,645.79,0.30969819]
[1740067593153,3.0913998,647.68,645.79,0.30969819]
[1740067593451,3.0913998,647.67,645.79,0.30969819]
[1740067593654,3.0913998,647.66,645.79,0.30969819]
[1740067593852,3.0913998,647.65,645.79,0.30969819]
[1740067594053,3.0913998,647.64,645.79,0.30969819]
[1740067594258,2.30732716,647.67,645.79,0.30969819]
[1740067594545,3.09159839,647.66,645.79,0.30969819]
[1740067594751,2.30732716,647.67,645.79,0.30969819]
[1740067594953,3.091644,647.66,645.79,0.30969819]
[1740067595149,2.30732716,647.67,645.79,0.30969819]
[1740067595348,3.09105797,647.66,645.79,0.30969819]
[1740067595552,0.30878969,647.69,645.79,0.30969819]
[1740067595847,0.30878969,647.69,645.81,1.14550234]
[1740067595848,3.09097941,647.68,645.81,1.14550234]
[1740067596052,3.09097941,647.67,645.81,1.14550234]
[1740067596252,2.30722488,647.68,645.81,1.14550234]
[1740067596851,3.090899,647.67,645.81,1.14550234]
[1740067597052,3.09060912,647.66,645.83,0.30967901]
[1740067597352,2.30722488,647.68,645.83,0.30967901]
[1740067597552,3.09104347,647.67,645.83,0.30967901]
[1740067597753,2.30722488,647.67,645.83,0.30967901]
[1740067598053,2.30722488,647.67,645.9,1.14550234]
[1740067598348,2.30722488,647.67,645.92,0.30963586]
[1740067598948,0.30878969,647.69,645.92,0.30963586]
[1740067599154,3.09127212,647.68,645.92,0.30963586]
[1740067599350,2.3072436,647.68,645.92,0.30963586]
[1740067599754,3.09088145,647.67,645.92,0.30963586]
[1740067599950,2.3072436,647.68,645.94,1.14550234]
[1740067600156,2.3072436,647.68,645.96,0.30961669]
[1740067600754,0.30878969,647.69,645.96,0.30961669]
[1740067600954,3.09106056,647.68,645.96,0.30961669]
[1740067601155,0.30878969,647.69,645.96,0.30961669]
[1740067602055,1.1370831,648.06,645.96,0.30961669]
[1740067602252,3.40099278,648.05,645.96,0.30961669]
[1740067602453,3.40099754,648.04,645.96,0.30961669]
[1740067602649,1.1370831,648.01,646.02,1.14550234]
[1740067602854,3.09237462,648.0,646.02,1.14550234]
[1740067603155,3.09237462,647.99,646.02,1.14550234]
[1740067603451,3.09237462,647.98,646.02,1.14550234]
[1740067603656,3.09237462,647.97,646.02,1.14550234]
[1740067603852,3.09237462,647.96,646.04,0.30957835]
[1740067604056,3.09237462,647.95,646.04,0.30957835]
[1740067604258,3.09237462,647.94,646.04,0.30957835]
[1740067604458,3.09237462,647.93,646.04,0.30957835]
[1740067604658,2.30803589,647.95,646.04,0.30957835]
[1740067604659,3.09237462,647.92,646.04,0.30957835]
[1740067604858,3.09237462,647.91,646.04,0.30957835]
[1740067605054,3.09237462,647.9,646.04,0.30957835]
[1740067605360,3.09237462,647.89,646.04,0.30957835]
[1740067605554,3.09237462,647.88,646.04,0.30957835]
[1740067605757,3.09237462,647.87,646.04,0.30957835]
[1740067606054,3.09237462,647.86,646.04,0.30957835]
[1740067606258,3.09237462,647.85,646.04,0.30957835]
[1740067606459,3.09237462,647.84,646.04,0.30957835]
[1740067606661,3.09237462,647.83,646.04,0.30957835]
[1740067606857,3.09237462,647.82,646.04,0.30957835]
[1740067607057,3.09237462,647.81,646.07,1.14550234]
[1740067607264,3.09237462,647.8,646.07,1.14550234]
[1740067607464,3.09237462,647.79,646.07,1.14550234]
[1740067607664,3.09237462,647.78,646.07,1.14550234]
[1740067607859,2.30803589,647.86,646.07,1.14550234]
[1740067607860,3.09237462,647.77,646.09,0.30955439]
[1740067608066,5.40041051,647.76,646.09,0.30955439]
[1740067608265,3.09237462,647.75,646.09,0.30955439]
[1740067608460,3.09237462,647.74,646.09,0.30955439]
[1740067608664,3.09237462,647.73,646.09,0.30955439]
[1740067608859,3.09237462,647.72,646.09,0.30955439]
[1740067609061,3.09237462,647.71,646.09,0.30955439]
[1740067609259,3.09237462,647.7,646.09,0.30955439]
[1740067609463,3.09237462,647.69,646.09,0.30955439]
[1740067609664,3.09237462,647.68,646.09,0.30955439]
[1740067609866,3.09237462,647.67,646.09,0.30955439]
[1740067610168,5.40041051,647.66,646.09,0.30955439]
[1740067610364,3.09237462,647.65,646.09,0.30955439]
[1740067610567,3.09237462,647.64,646.09,0.30955439]
[1740067610769,3.09237462,647.63,646.09,0.30955439]
[1740067610972,3.09237462,647.62,646.09,0.30955439]
[1740067611270,3.09237462,647.61,646.09,0.30955439]
[1740067611469,3.09237462,647.6,646.09,0.30955439]
[1740067611669,3.09237462,647.59,646.09,0.30955439]
[1740067611869,3.09237462,647.58,646.09,0.30955439]
[1740067612067,3.09237462,647.57,646.16,1.14550234]
[1740067612268,3.10092944,647.56,646.17,0.30951607]
[1740067612468,2.30803589,647.58,646.17,0.30951607]
[1740067613173,1.1370831,647.71,646.17,0.30951607]
[1740067613473,3.10306148,647.7,646.17,0.30951607]
[1740067613772,3.10306148,647.69,646.17,0.30951607]
[1740067613972,3.10306148,647.68,646.17,0.30951607]
[1740067614170,3.10306148,647.67,646.17,0.30951607]
[1740067614364,3.10306148,647.66,646.17,0.30951607]
[1740067614569,3.10306148,647.65,646.17,0.30951607]
[1740067614871,3.10306148,647.64,646.17,0.30951607]
[1740067615071,3.10306148,647.63,646.17,0.30951607]
[1740067615272,3.10306148,647.62,646.17,0.30951607]
[1740067615467,3.10306148,647.61,646.17,0.30951607]
[1740067615669,3.10306148,647.6,646.17,0.30951607]
[1740067615968,2.31605521,647.64,646.17,0.30951607]
[1740067616174,3.10610139,647.63,646.17,0.30951607]
[1740067616370,3.10610139,647.62,646.17,0.30951607]
[1740067616576,5.4221566,647.61,646.17,0.30951607]
[1740067616875,3.10610139,647.6,646.17,0.30951607]
[1740067617074,2.31605521,647.61,646.17,0.30951607]
[1740067617674,3.10942639,647.6,646.17,0.30951607]
[1740067617878,2.31605521,647.61,646.17,0.30951607]
[1740067618079,3.10939028,647.6,646.17,0.30951607]
[1740067618276,2.31605521,647.61,646.17,0.30951607]
[1740067618776,1.44570602,648.04,646.17,0.30951607]
[1740067618972,3.11135997,648.03,646.17,0.30951607]
[1740067619176,3.41999241,648.02,646.17,0.30951607]
[1740067619377,3.41999718,648.01,646.17,0.30951607]
[1740067619575,3.42000194,648.0,646.17,0.30951607]
[1740067619779,3.4200067,647.99,646.17,0.30951607]
[1740067619981,3.42001147,647.98,646.17,0.30951607]
[1740067620181,3.11135997,647.97,646.17,0.30951607]
[1740067620481,3.11135997,647.96,646.17,0.30951607]
[1740067620682,3.11135997,647.95,646.17,0.30951607]
[1740067620884,3.11135997,647.94,646.17,0.30951607]
[1740067621183,3.11135997,647.93,646.17,0.30951607]
[1740067621385,3.11135997,647.92,646.17,0.30951607]
[1740067621584,3.11135997,647.91,646.17,0.30951607]
[1740067621785,3.11135997,647.9,646.17,0.30951607]
[1740067621984,3.11135997,647.89,646.24,1.14550234]
[1740067622184,3.11135997,647.88,646.25,0.30947775]
[1740067622385,3.11135997,647.87,646.25,0.30947775]
[1740067622585,6.17634419,647.86,646.25,0.30947775]
[1740067622787,3.11135997,647.85,646.25,0.30947775]
[1740067622987,3.11135997,647.84,646.25,0.30947775]
[1740067623187,8.50156569,647.83,646.25,0.30947775]
[1740067623382,3.11135997,647.82,646.25,0.30947775]
[1740067623587,3.11135997,647.81,646.25,0.30947775]
[1740067623782,3.11135997,647.8,646.25,0.30947775]
[1740067623984,3.11135997,647.79,646.25,0.30947775]
[1740067624184,3.11135997,647.78,646.25,0.30947775]
[1740067624382,14.6564192,647.77,646.37,1.14550234]
[1740067624588,3.11135997,647.76,646.37,1.14550234]
[1740067624789,11.0318414,647.75,646.37,1.14550234]
[1740067624985,3.11135997,647.74,646.38,0.30941551]
[1740067625185,11.0318414,647.73,646.38,0.30941551]
[1740067625388,3.11135997,647.72,646.38,0.30941551]
[1740067625686,11.0318414,647.71,646.38,0.30941551]
[1740067625882,3.11135997,647.7,646.38,0.30941551]
[1740067626183,7.92048143,647.7,646.38,0.30941551]
[1740067626390,2.32346621,647.75,646.38,0.30941551]
[1740067626586,11.06001436,647.74,646.38,0.30941551]
[1740067626786,3.12571954,647.73,646.38,0.30941551]
[1740067626982,3.12571954,647.72,646.38,0.30941551]
[1740067627186,11.06001436,647.71,646.38,0.30941551]
[1740067627387,3.12571954,647.7,646.42,1.14550234]
[1740067627585,3.12571954,647.69,646.42,1.14550234]
[1740067627784,3.12571954,647.68,646.42,1.14550234]
[1740067627983,3.12571954,647.67,646.42,1.14550234]
[1740067628187,3.12571954,647.66,646.42,1.14550234]
[1740067628490,5.44918575,647.65,646.42,1.14550234]
[1740067628689,3.12571954,647.64,646.42,1.14550234]
[1740067628884,3.12571954,647.63,646.42,1.14550234]
[1740067629087,3.12571954,647.62,646.42,1.14550234]
[1740067629284,3.12571954,647.61,646.42,1.14550234]
[1740067629483,3.12571954,647.6,646.38,0.30941551]
[1740067629687,2.32346621,647.65,646.38,0.30941551]
[1740067629885,3.12579353,647.64,646.38,0.30941551]
[1740067630083,3.12603514,647.63,646.38,0.30941551]
[1740067630389,3.12603514,647.62,646.38,0.30941551]
[1740067630588,3.12603514,647.61,646.38,0.30941551]
[1740067630794,5.45866381,647.6,646.38,0.30941551]
[1740067630984,3.12603514,647.59,646.38,0.30941551]
[1740067631290,3.12603514,647.58,646.38,0.30941551]
[1740067631489,3.12603514,647.57,646.38,0.30941551]
[1740067631681,3.12603514,647.56,646.38,0.30941551]
[1740067631885,3.12603514,647.55,646.38,0.30941551]
[1740067632089,3.12603514,647.54,646.38,0.30941551]
[1740067632283,3.12603514,647.53,646.38,0.30941551]
[1740067632482,3.12603514,647.52,646.38,0.30941551]
[1740067632788,5.45866381,647.51,646.38,0.30941551]
[1740067632989,3.12603514,647.5,646.38,0.30941551]
[1740067633189,3.12603514,647.49,646.38,0.30941551]
[1740067633489,3.12603514,647.48,646.38,0.30941551]
[1740067633689,3.12603514,647.47,646.38,0.30941551]
[1740067633989,2.33262867,647.51,646.38,0.30941551]
[1740067634189,3.12513546,647.5,646.38,0.30941551]
[1740067634489,2.33262867,647.51,646.38,0.30941551]
[1740067634490,3.12513546,647.49,646.38,0.30941551]
[1740067634690,2.33262867,647.49,646.38,0.30941551]
[1740067635193,1.1370831,647.92,646.38,0.30941551]
[1740067635592,5.45772277,647.91,646.38,0.30941551]
[1740067635792,3.43382275,647.9,646.38,0.30941551]
[1740067636091,3.12513314,647.89,646.38,0.30941551]
[1740067636287,3.12513314,647.88,646.38,0.30941551]
[1740067636490,3.43383704,647.87,646.38,0.30941551]
[1740067636687,3.43384181,647.86,646.38,0.30941551]
[1740067636891,3.12513314,647.85,646.38,0.30941551]
[1740067637085,3.12513314,647.84,646.38,0.30941551]
[1740067637286,11.05709338,647.83,646.38,0.30941551]
[1740067637493,3.12513314,647.82,646.38,0.30941551]
[1740067637694,11.05709338,647.81,646.38,0.30941551]
[1740067637993,3.12513314,647.8,646.16,1.61186356]
[1740067638193,11.05709338,647.79,646.16,1.61186356]
[1740067638389,3.12513314,647.78,646.16,1.61186356]
[1740067638590,11.05709338,647.77,646.16,1.61186356]
[1740067638795,11.05709338,647.76,646.16,1.61186356]
[1740067638994,3.12513314,647.75,646.16,1.61186356]
[1740067639195,11.05709338,647.74,646.16,1.61186356]
[1740067639390,3.12513314,647.73,646.16,1.61186356]
[1740067639593,3.12513314,647.72,646.16,1.61186356]
[1740067639793,3.12513314,647.71,646.16,1.61186356]
[1740067639991,3.12513314,647.7,646.16,1.61186356]
[1740067640193,3.12513314,647.69,646.16,1.61186356]
[1740067640391,3.12513314,647.68,646.16,1.61186356]
[1740067640697,3.12513314,647.67,646.16,1.61186356]
[1740067640896,3.12513314,647.66,646.16,1.61186356]
[1740067641096,3.12513314,647.65,646.16,1.61186356]
[1740067641293,3.12513314,647.64,646.16,1.61186356]
[1740067641493,3.12513314,647.63,646.16,1.61186356]
[1740067641695,3.12513314,647.62,646.16,1.61186356]
[1740067641996,3.12513314,647.61,646.16,1.61186356]
[1740067642196,3.12513314,647.6,646.16,1.61186356]
[1740067642396,3.12513314,647.59,646.16,1.61186356]
[1740067642595,3.12513314,647.58,646.16,1.61186356]
[1740067642797,3.12513314,647.57,646.16,1.61186356]
[1740067642993,3.12513314,647.56,646.16,1.61186356]
[1740067643191,3.12513314,647.55,646.16,1.61186356]
[1740067643395,3.12513314,647.54,646.16,1.61186356]
[1740067643596,3.12513314,647.53,646.16,1.61186356]
[1740067643793,3.12513314,647.52,646.16,1.61186356]
[1740067643994,3.12513314,647.51,646.16,1.61186356]
[1740067644297,3.12513314,647.5,646.16,1.61186356]
[1740067644493,3.12513314,647.49,646.16,1.61186356]
[1740067644797,3.12513314,647.48,646.16,1.61186356]
[1740067644997,3.12513314,647.47,646.16,1.61186356]
[1740067645200,3.12513314,647.46,646.16,1.61186356]
[1740067645391,3.12513314,647.45,646.16,1.61186356]
[1740067645594,3.12513314,647.44,646.16,1.61186356]
[1740067645792,3.12513314,647.43,646.16,1.61186356]
[1740067645994,3.12513314,647.42,646.16,1.61186356]
[1740067646198,3.12513314,647.41,646.16,1.61186356]
[1740067646398,3.12513314,647.4,646.16,1.61186356]
[1740067646697,2.33258963,647.46,646.16,1.61186356]
[1740067646895,3.12123899,647.45,646.16,1.61186356]
[1740067647092,3.12123899,647.44,646.16,1.61186356]
[1740067647296,3.12123899,647.43,646.16,1.61186356]
[1740067647498,3.12123899,647.42,646.16,1.61186356]
[1740067647698,2.33258963,647.43,646.16,1.61186356]
[1740067647899,3.12095893,647.42,646.16,1.61186356]
[1740067648099,2.33258963,647.43,646.16,1.61186356]
[1740067648296,3.1209259,647.42,646.16,1.61186356]
[1740067648600,3.1209259,647.41,646.16,1.61186356]
[1740067648796,3.12073677,647.4,646.16,1.61186356]
[1740067648997,2.33258963,647.43,646.16,1.61186356]
[1740067649202,3.12063608,647.42,646.16,1.61186356]
[1740067649398,2.33258963,647.4,646.16,1.61186356]
[1740067651205,1.1370831,647.95,646.16,1.61186356]
[1740067651501,3.12021447,647.94,646.16,1.61186356]
[1740067651703,3.12021447,647.93,646.16,1.61186356]
[1740067651998,3.12021447,647.92,646.16,1.61186356]
[1740067652204,3.12021447,647.91,646.16,1.61186356]
[1740067652401,3.12021447,647.9,646.16,1.61186356]
[1740067652604,2.32905735,647.92,646.16,1.61186356]
[1740067652605,3.12021447,647.89,646.16,1.61186356]
[1740067652805,3.12021447,647.88,646.16,1.61186356]
[1740067653006,3.12021447,647.87,646.16,1.61186356]
[1740067653205,3.12021447,647.86,646.16,1.61186356]
[1740067653406,3.12021447,647.85,646.16,1.61186356]
[1740067653706,3.12021447,647.84,646.16,1.61186356]
[1740067653900,3.12021447,647.83,646.16,1.61186356]
[1740067654101,3.12021447,647.82,646.16,1.61186356]
[1740067654405,3.12021447,647.81,646.16,1.61186356]
[1740067654605,3.12021447,647.8,646.16,1.61186356]
[1740067654804,3.12021447,647.79,646.16,1.61186356]
[1740067655007,3.12021447,647.78,646.16,1.61186356]
[1740067655207,5.44927182,647.77,646.16,1.61186356]
[1740067655410,3.12021447,647.76,646.16,1.61186356]
[1740067655606,3.12021447,647.75,646.16,1.61186356]
[1740067655805,3.12021447,647.74,646.16,1.61186356]
[1740067656009,3.12021447,647.73,646.16,1.61186356]
[1740067656203,3.12021447,647.72,646.16,1.61186356]
[1740067656405,3.12021447,647.71,646.16,1.61186356]
[1740067656606,3.12021447,647.7,646.16,1.61186356]
[1740067656808,3.12021447,647.69,646.16,1.61186356]
[1740067657008,3.12021447,647.68,646.16,1.61186356]
[1740067657208,3.12021447,647.67,646.16,1.61186356]
[1740067657407,3.12021447,647.66,646.16,1.61186356]
[1740067657609,3.12021447,647.65,646.16,1.61186356]
[1740067657813,3.12021447,647.64,646.16,1.61186356]
[1740067658012,3.12021447,647.63,646.16,1.61186356]
[1740067658211,2.32905735,647.68,646.16,1.61186356]
[1740067658212,3.12021447,647.62,646.16,1.61186356]
[1740067658412,3.12021447,647.61,646.16,1.61186356]
[1740067658611,3.12021447,647.6,646.16,1.61186356]
[1740067658809,3.12021447,647.59,646.16,1.61186356]
[1740067659011,3.12021447,647.58,646.16,1.61186356]
[1740067659213,3.12021447,647.57,646.16,1.61186356]
[1740067659410,3.12021447,647.56,646.16,1.61186356]
[1740067659608,3.12021447,647.55,646.16,1.61186356]
[1740067659814,3.12021447,647.54,646.16,1.61186356]
[1740067660108,3.12021447,647.53,646.16,1.61186356]
[1740067660312,3.12021447,647.52,646.16,1.61186356]
[1740067660513,3.12021447,647.51,646.16,1.61186356]
[1740067660810,3.12021447,647.5,646.16,1.61186356]
[1740067661014,3.12021447,647.49,646.16,1.61186356]
[1740067661215,3.12021447,647.48,646.16,1.61186356]
[1740067661416,3.12021447,647.47,646.16,1.61186356]
[1740067661718,3.12021447,647.46,646.16,1.61186356]
[1740067661910,2.32905735,647.56,646.16,1.61186356]
[1740067662215,3.12205426,647.55,646.16,1.61186356]
[1740067662409,3.12205426,647.54,646.16,1.61186356]
[1740067662608,3.12205426,647.53,646.16,1.61186356]
[1740067662812,3.12205426,647.52,646.16,1.61186356]
[1740067663016,3.12205426,647.51,646.16,1.61186356]
[1740067663216,3.12205426,647.5,646.16,1.61186356]
[1740067663413,3.12205426,647.49,646.16,1.61186356]
[1740067663613,3.12205426,647.48,646.16,1.61186356]
[1740067663919,3.12205426,647.47,646.16,1.61186356]
[1740067664111,3.12205426,647.46,646.16,1.61186356]
[1740067664316,3.12205426,647.45,646.16,1.61186356]
[1740067664516,3.12331371,647.44,646.16,1.61186356]
[1740067664714,2.32905735,647.45,646.16,1.61186356]
[1740067664917,3.12328271,647.44,646.16,1.61186356]
[1740067665118,2.32905735,647.45,646.16,1.61186356]
[1740067666019,3.12395711,647.44,646.16,1.61186356]
[1740067666221,2.32905735,647.45,646.17,0.30951607]
[1740067666423,3.12424424,647.44,646.17,0.30951607]
[1740067666615,2.32905735,647.44,646.17,0.30951607]
[1740067668318,1.1370831,647.84,646.17,0.30951607]
[1740067668522,3.43390748,647.83,646.17,0.30951607]
[1740067668824,5.76676214,647.82,646.17,0.30951607]
[1740067669020,3.43391701,647.81,646.17,0.30951607]
[1740067669323,3.12518452,647.8,646.17,0.30951607]
[1740067669516,0.30874679,647.78,646.17,0.30951607]
[1740067669718,3.12518452,647.77,646.17,0.30951607]
[1740067669923,3.12518452,647.76,646.17,0.30951607]
[1740067670123,3.12518452,647.75,646.17,0.30951607]
[1740067670325,3.12518452,647.74,646.17,0.30951607]
[1740067670524,3.43395514,647.73,646.17,0.30951607]
[1740067670820,3.12518452,647.72,646.17,0.30951607]
[1740067671017,3.12518452,647.71,646.17,0.30951607]
[1740067671223,3.43396945,647.7,646.17,0.30951607]
[1740067671425,3.43397421,647.69,646.17,0.30951607]
[1740067671625,3.12518452,647.68,646.17,0.30951607]
[1740067671824,3.12518452,647.67,646.17,0.30951607]
[1740067672020,3.43398852,647.66,646.17,0.30951607]
[1740067672225,3.43399329,647.65,646.17,0.30951607]
[1740067672427,3.43399805,647.64,646.17,0.30951607]
[1740067672720,3.43400282,647.63,646.17,0.30951607]
[1740067672925,3.43400759,647.62,646.17,0.30951607]
[1740067673123,3.43401236,647.61,646.17,0.30951607]
[1740067673327,3.12518452,647.6,646.17,0.30951607]
[1740067673627,3.4340219,647.59,646.17,0.30951607]
[1740067673826,3.12518452,647.58,646.17,0.30951607]
[1740067674027,5.45803441,647.57,646.17,0.30951607]
[1740067674224,3.12518452,647.56,646.17,0.30951607]
[1740067674425,3.12518452,647.55,646.17,0.30951607]
[1740067674620,3.12518452,647.54,646.17,0.30951607]
[1740067674820,2.33284989,647.57,646.17,0.30951607]
[1740067674821,3.12518452,647.53,646.17,0.30951607]
[1740067675026,3.12518452,647.52,646.17,0.30951607]
[1740067675223,3.12518452,647.51,646.17,0.30951607]
[1740067675423,3.12518452,647.5,646.17,0.30951607]
[1740067675628,3.12518452,647.49,646.17,0.30951607]
[1740067675827,3.12518452,647.48,646.17,0.30951607]
[1740067676028,3.12518452,647.47,646.17,0.30951607]
[1740067676225,5.45803441,647.46,646.17,0.30951607]
[1740067676429,3.12518452,647.45,646.17,0.30951607]
[1740067676624,3.12518452,647.44,646.17,0.30951607]
[1740067676830,3.12518452,647.43,646.17,0.30951607]
[1740067677029,3.12518452,647.42,646.17,0.30951607]
[1740067677229,3.12518452,647.41,646.17,0.30951607]
[1740067677429,3.12518452,647.4,646.17,0.30951607]
[1740067677629,3.12518452,647.39,646.17,0.30951607]
[1740067677829,3.12518452,647.38,646.17,0.30951607]
[1740067678031,5.45803441,647.37,646.17,0.30951607]
[1740067678229,3.12518452,647.36,646.17,0.30951607]
[1740067678426,3.12518452,647.35,646.17,0.30951607]
[1740067678624,3.12518452,647.34,646.17,0.30951607]
[1740067678826,3.12518452,647.33,646.17,0.30951607]
[1740067679031,3.12518452,647.32,646.17,0.30951607]
[1740067679227,3.12518452,647.31,646.17,0.30951607]
[1740067679433,2.33284989,647.37,646.17,0.30951607]
[1740067679727,3.12437974,647.36,646.17,0.30951607]
[1740067680031,3.12437974,647.35,646.17,0.30951607]
[1740067680230,3.12437974,647.34,646.17,0.30951607]
[1740067680425,3.12437974,647.33,646.17,0.30951607]
[1740067680628,2.33236598,647.36,646.17,0.30951607]
[1740067680829,3.12458649,647.35,646.17,0.30951607]
[1740067681028,2.33236598,647.36,646.17,0.30951607]
[1740067682031,0.30883738,647.59,646.17,0.30951607]
[1740067682230,11.06359216,647.58,646.17,0.30951607]
[1740067682426,11.06359216,647.57,646.17,0.30951607]
[1740067682631,3.12667645,647.56,646.17,0.30951607]
[1740067682831,11.06359216,647.55,646.17,0.30951607]
[1740067683033,3.12667645,647.54,646.17,0.30951607]
[1740067683233,11.06359216,647.53,646.17,0.30951607]
[1740067683428,3.12667645,647.52,646.17,0.30951607]
[1740067683632,11.06359216,647.51,646.17,0.30951607]
[1740067683933,3.12667645,647.5,646.17,0.30951607]
[1740067684131,11.06359216,647.49,646.17,0.30951607]
[1740067684329,3.12667645,647.48,646.17,0.30951607]
[1740067684533,6.19987323,647.47,646.17,0.30951607]
[1740067684736,11.06359216,647.46,646.17,0.30951607]
[1740067684938,3.12667645,647.45,646.17,0.30951607]
[1740067685232,3.12667645,647.44,646.17,0.30951607]
[1740067685431,3.12667645,647.43,646.17,0.30951607]
[1740067685636,3.12667645,647.42,646.17,0.30951607]
[1740067685833,3.12667645,647.41,646.17,0.30951607]
[1740067686033,3.12667645,647.4,646.17,0.30951607]
[1740067686233,3.12667645,647.39,646.17,0.30951607]
[1740067686430,3.12667645,647.38,646.17,0.30951607]
[1740067686633,3.12667645,647.37,646.17,0.30951607]
[1740067686833,3.12667645,647.36,646.17,0.30951607]
[1740067687030,3.12667645,647.35,646.17,0.30951607]
[1740067687236,3.12667645,647.34,646.17,0.30951607]
[1740067687537,2.3340973,647.34,646.17,0.30951607]
[1740067688037,3.13346504,647.33,646.17,0.30951607]
[1740067688236,2.3340973,647.34,646.17,0.30951607]
[1740067688737,3.63081802,647.57,646.17,0.30951607]
[1740067688939,3.13430827,647.56,646.17,0.30951607]
[1740067689242,5.47407689,647.55,646.17,0.30951607]
[1740067689433,3.13430827,647.54,646.17,0.30951607]
[1740067689638,3.13430827,647.53,646.17,0.30951607]
[1740067689837,3.13430827,647.52,646.17,0.30951607]
[1740067690035,3.13430827,647.51,646.17,0.30951607]
[1740067690236,3.13430827,647.5,646.17,0.30951607]
[1740067690437,3.13430827,647.49,646.17,0.30951607]
[1740067690635,3.13430827,647.48,646.17,0.30951607]
[1740067690836,3.13430827,647.47,646.17,0.30951607]
[1740067691032,3.13430827,647.46,646.17,0.30951607]
[1740067691234,2.33976862,647.48,646.17,0.30951607]
[1740067691935,1.1370831,647.68,646.17,0.30951607]
[1740067692142,3.13685481,647.67,646.17,0.30951607]
[1740067692334,3.13685481,647.66,646.17,0.30951607]
[1740067692536,3.13685481,647.65,646.17,0.30951607]
[1740067692739,3.13685481,647.64,646.17,0.30951607]
[1740067692939,2.34102511,647.66,646.17,0.30951607]
[1740067692940,3.13685481,647.63,646.17,0.30951607]
[1740067693133,3.13685481,647.62,646.17,0.30951607]
[1740067693338,3.13685481,647.61,646.17,0.30951607]
[1740067693541,3.13685481,647.6,646.17,0.30951607]
[1740067693839,3.13685481,647.59,646.17,0.30951607]
[1740067694039,3.13685481,647.58,646.17,0.30951607]
[1740067694236,3.13685481,647.57,646.17,0.30951607]
[1740067694438,2.34102511,647.58,646.17,0.30951607]
[1740067694639,3.13553365,647.57,646.17,0.30951607]
[1740067694941,3.13553365,647.56,646.17,0.30951607]
[1740067695141,2.34102511,647.58,646.17,0.30951607]
[1740067695641,3.13584002,647.57,646.17,0.30951607]
[1740067695842,2.34102511,647.58,646.17,0.30951607]
[1740067695843,1.1370831,648.27,646.17,0.30951607]
[1740067696044,0.30852294,648.25,646.17,0.30951607]
[1740067696237,3.13586672,648.24,646.17,0.30951607]
[1740067696440,0.30853722,648.22,646.17,0.30951607]
[1740067696638,3.13586672,648.21,646.17,0.30951607]
[1740067696842,0.3085515,648.19,646.17,0.30951607]
[1740067697042,3.13586672,648.18,646.17,0.30951607]